fUST/lending_fUST_20260331
["ID","MTS","AMOUNT","RATE_DAILY","PERIOD"]
[419145612,1774935032605,-259.97684379,0.00022008,2]
[419145613,1774935032614,-467.95831883,0.00022008,2]
[419145614,1774935032624,-831.92590014,0.00022008,2]
[419145615,1774935032634,-1298.58433475,0.00022008,2]
[419145616,1774935032644,-1000.0,0.00022483,30]
[419145617,1774935032654,-166.8358909,0.00022724,2]
[419145618,1774935032665,-197.0,0.00023,2]
[419145619,1774935032676,-270.83333333,0.00023,2]
[419145620,1774935032686,-1200.0,0.00023165,2]
[419145621,1774935032696,-300.0,0.00023166,2]
[419145622,1774935032706,-300.0,0.00023166,2]
[419145623,1774935032715,-300.0,0.00023166,2]
[419145624,1774935032725,-300.0,0.00023166,2]
[419145625,1774935032735,-300.0,0.00023166,2]
[419145626,1774935032744,-203.64703542,0.00023167,2]
[419145627,1774935032755,-196.2208232,0.00023559,2]
[419145628,1774935032765,-1263.154286,0.00023642,2]
[419145629,1774935032775,-200.0,0.0002373,2]
[419145630,1774935032784,-1048.49863802,0.0002373,2]
[419145764,1774935038665,-300.0,0.00022448,10]
[419145765,1774935038675,-300.0,0.00022448,10]
[419145766,1774935038684,-300.0,0.00022448,10]
[419145767,1774935038693,-300.0,0.00022448,10]
[419145768,1774935038703,-300.0,0.00022448,10]
[419145769,1774935038713,-300.0,0.00022448,10]
[419145770,1774935038723,-300.0,0.00022448,10]
[419145771,1774935038733,-612.137328,0.0002373,2]
[419145772,1774935038775,-300.0,0.00022448,10]
[419145773,1774935038785,-2301.54438766,0.0002373,2]
[419145807,1774935046633,-300.0,0.00022448,10]
[419145808,1774935046642,-300.0,0.00022448,10]
[419145809,1774935046652,-300.0,0.00022448,10]
[419145810,1774935046662,-300.0,0.00022448,10]
[419145811,1774935046671,-300.0,0.00022448,10]
[419145812,1774935046681,-300.0,0.00022448,10]
[419145813,1774935046691,-300.0,0.00022448,10]
[419145814,1774935046700,-456.50730823,0.00023729,2]
[419145815,1774935046710,-2604.50135988,0.0002373,2]
[419145816,1774935046900,-500.0,0.00023729,120]
[419145817,1774935046910,-772.12707557,0.0002373,2]
[419145820,1774935643711,396.0,0.00035064,120]
[419145840,1774936231708,-631.87264066,0.00013699,2]
[419145846,1774936231760,-368.12735934,0.00013699,2]
[419145848,1774936231771,-615.0,0.00013699,2]
[419145850,1774936231782,-1264.01643587,0.00013809,2]
[419145852,1774936231793,-1200.0,0.00014208,2]
[419145854,1774936231803,-1527.98356413,0.00014209,2]
[419145908,1774936240355,-1917.31819315,0.00014209,2]
[419145909,1774936240365,-300.0,0.00015628,2]
[419145910,1774936240374,-71.40899716,0.00015628,2]
[419145911,1774936240577,-228.59100284,0.00015628,2]
[419145912,1774936240587,-1680.0,0.00015629,2]
[419145913,1774936240595,-2909.4823676,0.00016584,2]
[419145914,1774936240604,-2.44633788,0.00016696,2]
[419145915,1774936240615,-212.46369982,0.00016696,2]
[419145916,1774936240624,-420.0,0.00017093,2]
[419145917,1774936240633,-706.17259248,0.00017192,2]
[419146010,1774936245957,-1140.82740752,0.00017192,2]
[419146011,1774936245967,-500.0,0.00017986,2]
[419146012,1774936245976,-5065.77584107,0.00017987,10]
[419146013,1774936245986,-250.0,0.00018101,2]
[419146014,1774936245995,-287.0,0.00018695,2]
[419146015,1774936246005,-177.0,0.00022,2]
[419146016,1774936246015,-500.0,0.00022284,120]
[419146017,1774936246024,-5542.39391966,0.00022285,29]
[419146018,1774936246033,-151.0,0.00022285,2]
[419146019,1774936246044,-5000.0,0.00022285,2]
[419146020,1774936246054,-5000.0,0.00022285,2]
[419146021,1774936246063,-5000.0,0.00022285,2]
[419146022,1774936246072,-3441.049791,0.00022285,2]
[419146023,1774936246082,-151.0,0.00022285,2]
[419146024,1774936246091,-151.0,0.00022285,2]
[419146025,1774936246101,-151.0,0.00022285,2]
[419146026,1774936246110,-151.0,0.00022285,2]
[419146027,1774936246119,-153.80283224,0.00022399,2]
[419146028,1774936246129,-255.63131308,0.00022399,2]
[419146029,1774936246139,-310.95698,0.00022399,120]
[419146030,1774936246148,-10507.00737847,0.000224,2]
[419146031,1774936246159,-4602.33260778,0.000224,2]
[419146035,1774936447839,250.0,0.00035065,120]
[419146036,1774936448259,250.0,0.00035065,120]
[419146043,1774936657787,500.0,0.00035065,120]
[419146060,1774936939786,154.34980406,0.00035065,120]
[419146061,1774936940065,154.34980406,0.00035065,120]
[419146071,1774937221983,320.0685169,0.00035065,120]
[419146137,1774937432042,-648.57163051,0.00013599,2]
[419146139,1774937432054,-958.51464232,0.00013599,2]
[419146141,1774937432066,-594.54488708,0.00013599,2]
[419146143,1774937432077,-3911.47631868,0.00013599,2]
[419146145,1774937432087,-614.0,0.00013599,2]
[419146147,1774937432097,-300.0,0.00013698,2]
[419146149,1774937432106,-1000.0,0.00013699,2]
[419146151,1774937432115,-390.29528709,0.00013699,2]
[419146263,1774937438114,-109.70471291,0.00013699,2]
[419146264,1774937438124,-420.0,0.00015012,2]
[419146265,1774937438133,-357.0,0.00016451,2]
[419146266,1774937438142,-1618.0155727,0.00020588,2]
[419146267,1774937438152,-161.3143201,0.00020588,2]
[419146268,1774937438161,-1618.0155724,0.00020588,2]
[419146269,1774937438171,-1000.0,0.00021472,2]
[419146270,1774937438181,-168.0,0.00022,2]
[419146271,1774937438190,-400.0,0.0002239,2]
[419146272,1774937438199,-703.72,0.0002239,2]
[419146273,1774937438208,-186.202,0.0002239,2]
[419146274,1774937438217,-506.30086821,0.00022399,2]
[419146275,1774937438228,-21866.42648075,0.000224,2]
[419146276,1774937438237,-4136.12347239,0.00022402,2]
[419146277,1774937438246,-1353.0974235,0.00022502,2]
[419146278,1774937438256,-196.1862699,0.00022737,2]
[419146279,1774937438265,-168.0,0.00023,2]
[419146280,1774937438275,-270.83333333,0.00023277,2]
[419146282,1774937438283,-791.37280678,0.000234,53]
[419146284,1774937438292,-155.110131,0.00023473,2]
[419146286,1774937438302,-151.0,0.000235,2]
[419146287,1774937438311,-200.0,0.000235,2]
[419146288,1774937438321,-565.521243,0.000235,2]
[419146289,1774937438331,-565.521243,0.000235,2]
[419146290,1774937438340,-565.521243,0.000235,2]
[419146291,1774937438350,-40.33168112,0.000235,2]
[419146292,1774937438369,-525.18956188,0.000235,2]
[419146293,1774937438379,-151.0,0.000235,2]
[419146294,1774937438388,-844.25,0.000235,2]
[419146295,1774937438398,-844.25,0.000235,2]
[419146296,1774937438407,-844.25,0.000235,2]
[419146297,1774937438417,-1006.24,0.000235,2]
[419146298,1774937438427,-505.76494362,0.00023573,2]
[419146299,1774937438436,-5579.05549505,0.000236,2]
[419146311,1774937443647,-3882.06117269,0.000236,2]
[419146328,1774937446113,-1018.10075814,0.000236,2]
[419146329,1774938085122,463.4131303,0.00035071,120]
[419146415,1774938632624,-891.0,0.00013699,2]
[419146417,1774938632636,-109.0,0.00013699,2]
[419146419,1774938632646,-391.0,0.00013699,2]
[419146491,1774938638377,-224.0,0.00013699,2]
[419146492,1774938638387,-152.0,0.00022,2]
[419146493,1774938638397,-273.46038806,0.00022682,2]
[419146495,1774938638406,-165.626586,0.00022682,2]
[419146497,1774938638415,-196.2308133,0.0002273,2]
[419146499,1774938638424,-152.0,0.00023,2]
[419146501,1774938638433,-300.0,0.00023399,2]
[419146503,1774938638442,-300.0,0.00023399,2]
[419146505,1774938638455,-1200.0,0.00023399,2]
[419146507,1774938638464,-1004.75661793,0.000234,64]
[419146508,1774938638473,-2485.0931837,0.000234,64]
[419146510,1774938638483,-2247.74122588,0.000234,64]
[419146512,1774938638492,-2722.44514159,0.000234,64]
[419146514,1774938638501,-3619.10803828,0.000234,2]
[419146516,1774938638511,-500.0,0.00023426,2]
[419146518,1774938638520,-270.83333333,0.00023434,2]
[419146520,1774938638528,-206.66028162,0.000235,2]
[419146522,1774938638537,-222.94829871,0.000235,2]
[419146524,1774938638547,-399.1489079,0.000235,2]
[419146526,1774938638557,-49063.53787041,0.000235,2]
[419146528,1774938638568,-3583.73877053,0.000235,2]
[419146531,1774938638579,-16401.06805442,0.000235,2]
[419146552,1774938643877,-427.4780649,0.00023265,2]
[419146553,1774938643888,-51.08070807,0.000235,2]
[419146568,1774938646440,-2919.72841929,0.000234,2]
[419146569,1774938646450,-10579.13012839,0.000235,2]
[419146570,1774938646494,-69774.33475064,0.000235,2]
[419146571,1774938646506,-1929.10950984,0.000235,2]
[419146572,1774938719247,-1000.0,0.00013699,2]
[419146573,1774938739838,153.27696721,0.00035071,120]
[419146574,1774938740106,153.27696721,0.00035071,120]
[419146575,1774938740407,153.27696721,0.00035071,120]
[419146576,1774938740724,153.27696721,0.00035071,120]
[419146577,1774938741031,153.27696721,0.00035071,120]
[419146578,1774938741383,153.27696721,0.00035071,120]
[419146579,1774938741675,153.27696721,0.00035071,120]
[419146580,1774938742019,153.27696721,0.00035071,120]
[419146811,1774939838865,-1000.0,0.00013699,2]
[419146812,1774939838875,-615.0,0.00013699,2]
[419146813,1774939838885,-371.61651842,0.00021753,2]
[419146814,1774939838894,-500.0,0.00021948,2]
[419146815,1774939838904,-386.0,0.00022,2]
[419146816,1774939838913,-186.20213924,0.00022932,2]
[419146817,1774939838923,-562.976,0.00022932,2]
[419146818,1774939838932,-692.75519307,0.00022968,2]
[419146819,1774939838941,-386.0,0.00023,2]
[419146820,1774939838951,-2627.75557737,0.000231,2]
[419146821,1774939838960,-30.95740706,0.00023173,2]
[419146843,1774939847279,-469.04259294,0.00023173,2]
[419146844,1774939847289,-249.07211082,0.00023173,2]
[419146845,1774939847298,-500.69586726,0.00023173,2]
[419146846,1774939847307,-500.0,0.00023173,2]
[419146847,1774939847318,-500.0,0.00023173,2]
[419146848,1774939847327,-3166.71953353,0.00023173,2]
[419146849,1774939847337,-300.0,0.00023198,2]
[419146850,1774939847346,-319.55511576,0.00023199,2]
[419146851,1774939847356,-175.57710312,0.00023199,2]
[419146852,1774939847365,-13864.09886784,0.000232,2]
[419146853,1774940086733,-2959.79709948,0.00028349,120]
[419146854,1774940086782,-1861.83,0.00032876,120]
[419146855,1774940086820,-1861.83,0.00032876,120]
[419146856,1774940086852,-1861.83,0.00032876,120]
[419146857,1774940086885,-1861.83,0.00032876,120]
[419146858,1774940086918,-1861.83,0.00032876,120]
[419146859,1774940086951,-1861.83,0.00032876,120]
[419146860,1774940086985,-1861.83,0.00032876,120]
[419146861,1774940087018,-1861.83,0.00032876,120]
[419146862,1774940087052,-1861.83,0.00032876,120]
[419146863,1774940087086,-1861.83,0.00032876,120]
[419146864,1774940087118,-1861.83,0.00032876,120]
[419146865,1774940087148,-1861.83,0.00032876,120]
[419146866,1774940087180,-1861.83,0.00032876,120]
[419146867,1774940087209,-1861.83,0.00032876,120]
[419146868,1774940087244,-1861.83,0.00032876,120]
[419146869,1774940087275,-1861.83,0.00032876,120]
[419146870,1774940087309,-1861.83,0.00032876,120]
[419146871,1774940087342,-1861.83,0.00032876,120]
[419146872,1774940087376,-1861.83,0.00032876,120]
[419146873,1774940087408,-1861.83,0.00032876,120]
[419146874,1774940087442,-1861.83,0.00032876,120]
[419146875,1774940087472,-1861.83,0.00032876,120]
[419146876,1774940087501,-1861.83,0.00032876,120]
[419146877,1774940087532,-1862.03551486,0.00032876,120]
[419146878,1774940087567,-500.0,0.00032876,120]
[419146879,1774940087599,-500.0,0.00032876,120]
[419146880,1774940087634,-500.0,0.00032876,120]
[419146881,1774940087670,-600.49266011,0.00032876,120]
[419146882,1774940087705,-957.29,0.00032876,120]
[419146883,1774940087738,-957.29,0.00032876,120]
[419146884,1774940087771,-957.29,0.00032876,120]
[419146885,1774940087803,-957.29,0.00032876,120]
[419146886,1774940087835,-957.29,0.00032876,120]
[419146887,1774940087868,-957.29,0.00032876,120]
[419146888,1774940087899,-957.29,0.00032876,120]
[419146889,1774940087931,-957.29,0.00032876,120]
[419146890,1774940087964,-957.29,0.00032876,120]
[419146891,1774940087996,-957.29,0.00032876,120]
[419146892,1774940088029,-957.29,0.00032876,120]
[419146893,1774940088062,-957.29,0.00032876,120]
[419146894,1774940088095,-957.29,0.00032876,120]
[419146895,1774940088127,-957.29,0.00032876,120]
[419146896,1774940088159,-957.29,0.00032876,120]
[419146897,1774940088190,-957.29,0.00032876,120]
[419146898,1774940088223,-957.29,0.00032876,120]
[419146899,1774940088257,-957.29,0.00032876,120]
[419146900,1774940088434,-957.29,0.00032876,120]
[419146901,1774940088465,-957.29,0.00032876,120]
[419146902,1774940088505,-957.29,0.00032876,120]
[419146903,1774940088543,-957.29,0.00032876,120]
[419146904,1774940088576,-957.29,0.00032876,120]
[419146905,1774940088611,-957.48995247,0.00032876,120]
[419146906,1774940088644,-500.0,0.00032876,120]
[419146907,1774940088677,-500.0,0.00032876,120]
[419146908,1774940088708,-500.0,0.00032876,120]
[419146909,1774940088739,-500.0,0.00032876,120]
[419146910,1774940088771,-500.0,0.00032876,120]
[419146911,1774940088801,-500.0,0.00032876,120]
[419146912,1774940088833,-500.0,0.00032876,120]
[419146913,1774940088864,-648.980449,0.00032876,120]
[419146914,1774940103191,-1000.0,0.00022246,30]
[419146915,1774940103226,-600.0,0.00024102,10]
[419146916,1774940103255,-173.35377942,0.0002459,30]
[419146917,1774940103284,-217.841176,0.00024593,14]
[419146918,1774940103314,-160.0,0.00024935,14]
[419146919,1774940103343,-598.059483,0.00024935,14]
[419146920,1774940103371,-1036.118966,0.00024935,14]
[419146921,1774940103400,-160.0,0.00024935,14]
[419146922,1774940103427,-547.664649,0.00024935,14]
[419146923,1774940103456,-935.329298,0.00024935,14]
[419146924,1774940103484,-171.990653,0.00024935,14]
[419146925,1774940103516,-160.0,0.00024935,14]
[419146926,1774940103544,-534.487416,0.00024935,14]
[419146927,1774940103571,-908.974832,0.00024935,14]
[419146928,1774940103598,-221.844324,0.00024935,14]
[419146929,1774940103626,-160.0,0.00024935,14]
[419146930,1774940103654,-518.754964,0.00024935,14]
[419146931,1774940103682,-173.35377942,0.00024978,60]
[419146932,1774940103709,-246.60322045,0.00025205,15]
[419146933,1774940103740,-720.0,0.00026512,30]
[419146934,1774940103772,-4008.65562,0.00027429,14]
[419146935,1774940103802,-160.0,0.00028533,30]
[419146936,1774940103829,-153.0,0.00028533,30]
[419146937,1774940103859,-386.0,0.00028533,30]
[419146938,1774940103888,-152.0,0.00028533,30]
[419146939,1774940103917,-388.227564,0.00028675,14]
[419146940,1774940103945,-397.128841,0.00028675,14]
[419146941,1774940103978,-864.0,0.00029163,30]
[419146942,1774940104006,-160.0,0.00029533,30]
[419146943,1774940104034,-153.0,0.00029533,30]
[419146944,1774940104063,-386.0,0.00029533,30]
[419146945,1774940104091,-152.0,0.00029533,30]
[419146946,1774940104118,-254.0,0.0002976,18]
[419146947,1774940104146,-416.92886888,0.0003,10]
[419146948,1774940104174,-1621.4462516,0.0003,10]
[419146949,1774940104202,-100000.0,0.0003,20]
[419146950,1774940104228,-151.0,0.0003,14]
[419146951,1774940104255,-2413.09814314,0.000301,10]
[419146952,1774940104280,-151.0,0.00030362,14]
[419146953,1774940104309,-160.0,0.00030533,30]
[419146954,1774940104337,-153.0,0.00030533,30]
[419146955,1774940104364,-386.0,0.00030533,30]
[419146956,1774940104391,-152.0,0.00030533,30]
[419146957,1774940104418,-156.0,0.00030685,41]
[419146958,1774940104445,-151.0,0.00030724,14]
[419146959,1774940104473,-151.0,0.00031087,14]
[419146960,1774940104503,-10823.370175,0.00031169,14]
[419146961,1774940104531,-151.0,0.00031449,14]
[419146962,1774940104559,-160.0,0.00031533,30]
[419146963,1774940104587,-153.0,0.00031533,30]
[419146964,1774940104617,-386.0,0.00031533,30]
[419146965,1774940104645,-152.0,0.00031533,30]
[419146966,1774940104673,-151.0,0.00031811,14]
[419146967,1774940104701,-1000.0,0.00032,14]
[419146968,1774940104728,-1000.0,0.00032,14]
[419146969,1774940104760,-1000.0,0.00032079,30]
[419146970,1774940104887,-151.0,0.00032173,14]
[419146971,1774940104915,-174.55,0.00032285,15]
[419146972,1774940104944,-357.53,0.00032285,15]
[419146973,1774940104972,-160.48,0.00032326,15]
[419146974,1774940105000,-174.55,0.00032385,15]
[419146975,1774940105029,-357.53,0.00032385,15]
[419146976,1774940105056,-388.227564,0.00032416,14]
[419146977,1774940105083,-397.128841,0.00032416,14]
[419146978,1774940105111,-160.48,0.00032426,15]
[419146979,1774940105138,-174.55,0.00032485,15]
[419146980,1774940105166,-357.53,0.00032485,15]
[419146981,1774940105194,-160.48306907,0.00032526,15]
[419146982,1774940105221,-160.0,0.00032533,30]
[419146983,1774940105248,-153.0,0.00032533,30]
[419146984,1774940105276,-386.0,0.00032533,30]
[419146985,1774940105302,-152.0,0.00032533,30]
[419146986,1774940105330,-151.0,0.00032536,14]
[419146987,1774940105357,-174.55433376,0.00032585,15]
[419146988,1774940105385,-357.53,0.00032585,15]
[419146989,1774940105412,-451.0,0.00032602,10]
[419146990,1774940105441,-357.53,0.00032685,15]
[419146991,1774940105469,-1000.0,0.00032768,14]
[419146992,1774940105498,-357.53,0.00032785,15]
[419146993,1774940105525,-1499.999999,0.0003287,30]
[419146994,1774940105552,-161.2542161,0.00032876,30]
[419146995,1774940105581,-218.8164171,0.00032876,11]
[419146996,1774940105608,-500.0,0.00032876,10]
[419146997,1774940105635,-500.0,0.00032876,10]
[419146998,1774940105660,-500.0,0.00032876,10]
[419146999,1774940105686,-500.0,0.00032876,10]
[419147000,1774940105714,-500.0,0.00032876,10]
[419147001,1774940105740,-500.0,0.00032876,10]
[419147002,1774940105768,-500.0,0.00032876,10]
[419147003,1774940105796,-500.0,0.00032876,10]
[419147004,1774940105822,-500.0,0.00032876,10]
[419147005,1774940105849,-500.0,0.00032876,10]
[419147006,1774940105876,-500.0,0.00032876,10]
[419147007,1774940105903,-500.0,0.00032876,10]
[419147008,1774940105931,-500.0,0.00032876,10]
[419147009,1774940105958,-500.0,0.00032876,10]
[419147010,1774940105986,-500.0,0.00032876,10]
[419147011,1774940106012,-500.0,0.00032876,10]
[419147012,1774940106039,-548.42948751,0.00032876,10]
[419147013,1774940106072,-500.0,0.00032877,10]
[419147014,1774940106099,-500.0,0.00032877,12]
[419147015,1774940106128,-357.53,0.00032885,60]
[419147016,1774940106154,-151.0,0.00032898,14]
[419147017,1774940106180,-1000.0,0.000329,120]
[419147018,1774940106207,-2100.0,0.000329,120]
[419147019,1774940106235,-357.53,0.00032985,60]
[419147020,1774940106263,-210.76561135,0.00033,120]
[419147021,1774940106289,-6821.48,0.00033,10]
[419147022,1774940106316,-162.0,0.00033,14]
[419147023,1774940106343,-349.66256294,0.00033,120]
[419147024,1774940106369,-172.56972581,0.00033,120]
[419147025,1774940106397,-357.53,0.00033085,60]
[419147026,1774940106428,-451.0,0.0003315,11]
[419147027,1774940106456,-357.53,0.00033185,60]
[419147028,1774940106486,-3378.69193181,0.00033197,120]
[419147029,1774940106514,-1000.0,0.000332,120]
[419147030,1774940106546,-151.0,0.0003326,14]
[419147031,1774940106575,-357.53,0.00033285,60]
[419147032,1774940106605,-514.0,0.000333,120]
[419147033,1774940106634,-357.53,0.00033385,60]
[419147034,1774940106663,-399.4435,0.000334,10]
[419147035,1774940106690,-227.097,0.000334,10]
[419147036,1774940106720,-1090.295,0.000334,20]
[419147037,1774940106750,-500.0,0.00033425,14]
[419147038,1774940106780,-357.53,0.00033485,60]
[419147039,1774940106807,-1000.0,0.000335,120]
[419147040,1774940106835,-160.0,0.00033533,30]
[419147041,1774940106866,-153.0,0.00033533,30]
[419147042,1774940106894,-386.0,0.00033533,30]
[419147043,1774940106921,-152.0,0.00033533,30]
[419147044,1774940106949,-1000.0,0.00033536,14]
[419147045,1774940106979,-357.53,0.00033585,60]
[419147046,1774940107006,-151.0,0.00033622,14]
[419147047,1774940107039,-357.53,0.00033685,60]
[419147048,1774940107066,-451.0,0.00033698,12]
[419147049,1774940107096,-357.53,0.00033785,60]
[419147050,1774940107124,-1000.0,0.000338,120]
[419147051,1774940107152,-357.53,0.00033885,60]
[419147052,1774940107182,-2100.0,0.000339,120]
[419147053,1774940107208,-151.0,0.00033984,14]
[419147054,1774940107238,-357.53,0.00033985,60]
[419147055,1774940107265,-500.0,0.00034,120]
[419147056,1774940107295,-357.53,0.00034085,60]
[419147057,1774940107325,-1000.0,0.000341,120]
[419147058,1774940107357,-357.53,0.00034185,60]
[419147059,1774940107386,-451.0,0.00034246,13]
[419147060,1774940107418,-357.53,0.00034285,60]
[419147061,1774940107446,-1000.0,0.00034303,14]
[419147062,1774940107473,-151.0,0.00034347,14]
[419147063,1774940107503,-357.53,0.00034385,60]
[419147064,1774940107529,-1000.0,0.000344,120]
[419147065,1774940107651,-357.53,0.00034485,60]
[419147066,1774940107678,-167.4275,0.00034517,30]
[419147067,1774940107708,-500.0,0.00034521,16]
[419147068,1774940107735,-164.23800316,0.00034533,30]
[419147069,1774940107765,-157.39936611,0.00034533,30]
[419147070,1774940107793,-386.0,0.00034533,30]
[419147071,1774940107821,-154.67251215,0.00034533,30]
[419147072,1774940107852,-357.53,0.00034585,60]
[419147073,1774940107881,-357.53,0.00034685,60]
[419147074,1774940107909,-1000.0,0.000347,120]
[419147075,1774940107937,-151.0,0.00034709,14]
[419147076,1774940107967,-357.53,0.00034785,60]
[419147077,1774940107994,-451.0,0.00034794,14]
[419147078,1774940108024,-357.53,0.00034885,60]
[419147079,1774940108053,-2100.0,0.000349,120]
[419147080,1774940108084,-357.53,0.00034985,60]
[419147081,1774940108112,-400.0,0.0003499,120]
[419147082,1774940108140,-617.14440019,0.00035,120]
[419147083,1774940108168,-1000.0,0.00035,120]
[419147084,1774940108196,-880.58538208,0.00035,30]
[419147085,1774940108223,-162.0,0.00035,120]
[419147086,1774940108250,-170.0,0.00035,120]
[419147087,1774940108278,-400.0,0.00035,120]
[419147088,1774940108306,-990.0,0.00035,50]
[419147089,1774940108334,-658.99,0.00035,120]
[419147090,1774940108361,-347.28,0.00035,120]
[419147091,1774940108387,-100000.0,0.00035,20]
[419147092,1774940108414,-207.0,0.00035,120]
[419147093,1774940108440,-168.0,0.00035,120]
[419147094,1774940108466,-50000.03534011,0.00035,120]
[419147095,1774940108493,-1031.62,0.00035,120]
[419147096,1774940108520,-10000.0,0.00035055,120]
[419147097,1774940108547,-280.0,0.00035058,120]
[419147098,1774940108575,-4794.04,0.00035058,120]
[419147099,1774940108602,-500.0,0.00035058,120]
[419147100,1774940108631,-500.0,0.00035058,120]
[419147101,1774940108659,-526.28,0.00035062,120]
[419147102,1774940108685,-400.0,0.00035062,120]
[419147103,1774940108711,-6900.88736678,0.00035064,120]
[419147104,1774940108739,-500.0,0.00035065,120]
[419147105,1774940108771,-500.0,0.00035065,120]
[419147106,1774940108798,-1052.31452915,0.00035065,120]
[419147107,1774940108825,-1794.29,0.00035066,120]
[419147108,1774940108853,-355.0,0.00035066,120]
[419147109,1774940108879,-6500.0,0.00035066,120]
[419147110,1774940108906,-480.0,0.00035066,120]
[419147111,1774940108934,-786.03,0.00035066,30]
[419147112,1774940108961,-310.0,0.00035067,120]
[419147113,1774940109001,-160.0,0.00035067,120]
[419147114,1774940109034,-153.0,0.00035067,120]
[419147115,1774940109067,-162.0,0.00035067,120]
[419147116,1774940109102,-386.0,0.00035067,120]
[419147117,1774940109136,-152.0,0.00035067,120]
[419147118,1774940109167,-194.21507376,0.00035067,120]
[419147119,1774940109201,-690.03244374,0.00035067,120]
[419147120,1774940109234,-623.50162219,0.00035067,120]
[419147121,1774940109266,-620.17508111,0.00035067,120]
[419147122,1774940109299,-997.0,0.00035067,120]
[419147123,1774940109333,-2000.0,0.00035067,120]
[419147124,1774940109366,-602.44,0.00035067,120]
[419147125,1774940109397,-250.0,0.00035068,120]
[419147126,1774940109427,-250.0,0.00035068,120]
[419147127,1774940109459,-250.0,0.00035068,120]
[419147128,1774940109489,-250.0,0.00035068,120]
[419147129,1774940109518,-250.0,0.00035068,120]
[419147130,1774940109547,-1002.0,0.00035068,120]
[419147131,1774940109575,-10000.0,0.0003507,120]
[419147132,1774940109606,-215.00913582,0.00035071,14]
[419147133,1774940109637,-452.30119022,0.00035071,14]
[419147134,1774940109668,-990.69811522,0.00035071,14]
[419147135,1774940109702,-357.53,0.00035085,60]
[419147136,1774940109737,-357.53,0.00035185,60]
[419147137,1774940109772,-357.53,0.00035285,60]
[419147138,1774940109808,-1000.0,0.00035287,30]
[419147139,1774940109841,-244.0,0.00035287,30]
[419147140,1774940109873,-1000.0,0.000353,120]
[419147141,1774940109903,-5000.0,0.00035301,120]
[419147142,1774940109932,-451.0,0.00035342,15]
[419147143,1774940109962,-357.53,0.00035385,60]
[419147144,1774940109994,-357.53,0.00035485,60]
[419147145,1774940110029,-170.0,0.000355,120]
[419147146,1774940110061,-357.53,0.00035585,60]
[419147147,1774940110092,-1000.0,0.000356,120]
[419147148,1774940110123,-531.8,0.000356,30]
[419147149,1774940110155,-180.69857589,0.000356,60]
[419147150,1774940110187,-161.3801,0.000356,120]
[419147151,1774940110215,-1637.92,0.000356,60]
[419147152,1774940110244,-500.0,0.00035616,18]
[419147153,1774940110277,-357.53,0.00035685,60]
[419147154,1774940110320,-357.53,0.00035785,60]
[419147155,1774940110356,-357.53,0.00035885,60]
[419147156,1774940110390,-451.0,0.0003589,16]
[419147157,1774940110424,-1000.0,0.000359,120]
[419147158,1774940110459,-170.0,0.000359,120]
[419147159,1774940110493,-2100.0,0.000359,120]
[419147160,1774940110531,-357.53,0.00035985,60]
[419147161,1774940110565,-500.0,0.00036,120]